lending/lending_fUSD_20240219
["ID","MTS","AMOUNT","RATE_DAILY","PERIOD"]
[314423490,1708331450688,-500.0,0.00038999,4]
[314423491,1708331450698,-164.035459,0.00038999,14]
[314423492,1708331450708,-2399.85,0.00038999,4]
[314423493,1708331450718,-4019.845621,0.00038999,14]
[314423494,1708331450728,-500.0,0.00038999,4]
[314423495,1708331450737,-201.498821,0.00038999,14]
[314423496,1708331450747,-4019.845621,0.00038999,14]
[314423497,1708331450756,-170.221843,0.00038999,7]
[314423498,1708331450765,-201.498821,0.00038999,14]
[314423499,1708331450775,-332.222538,0.00038999,14]
[314423500,1708331450785,-332.222538,0.00038999,14]
[314423501,1708331450796,-804.69,0.00038999,4]
[314423502,1708331450806,-1142.03,0.00038999,4]
[314423503,1708331450815,-221.790654,0.00038999,14]
[314423504,1708331450825,-1181.116676,0.00038999,14]
[314423505,1708331450835,-221.790654,0.00038999,14]
[314423506,1708331450844,-1181.116676,0.00038999,14]
[314423507,1708331450853,-3511.84867,0.00038999,14]
[314423508,1708331450862,-299.96648964,0.00038999,2]
[314423509,1708331450872,-415.80331766,0.00038999,2]
[314423510,1708331450882,-3511.84867,0.00038999,14]
[314423511,1708331450892,-344.98824,0.00038999,14]
[314423512,1708331450901,-234.619198,0.00038999,14]
[314423513,1708331450911,-344.98824,0.00038999,14]
[314423514,1708331450920,-234.619198,0.00038999,14]
[314423515,1708331450930,-1106.186879,0.00038999,14]
[314423516,1708331450940,-151.0,0.00038999,14]
[314423517,1708331450950,-1106.186879,0.00038999,14]
[314423518,1708331450960,-151.0,0.00038999,14]
[314423519,1708331450972,-151.0,0.00038999,14]
[314423520,1708331450981,-100000.0,0.00039,9]
[314423521,1708331450990,-5000.0,0.00039,5]
[314423522,1708331451000,-5000.0,0.00039,5]
[314423523,1708331451010,-5000.0,0.00039,8]
[314423524,1708331451020,-5000.0,0.00039,9]
[314423525,1708331451030,-15525.0,0.00039,7]
[314423526,1708331451040,-11809.9492243,0.00039,2]
[314423527,1708331451050,-995.36384,0.00039,14]
[314423528,1708331451060,-900.0,0.00039,3]
[314423529,1708331451069,-124368.80961251,0.00039,3]
[314423530,1708331451079,-151.0,0.00039,14]
[314423531,1708331451088,-151.0,0.00039,14]
[314423532,1708331451098,-150.1,0.00039,2]
[314423533,1708331451108,-150.0,0.00039,2]
[314423534,1708331451118,-322.385201,0.00039,14]
[314423535,1708331451128,-322.385201,0.00039,14]
[314423536,1708331451139,-1052.44782,0.00039,14]
[314423537,1708331451149,-1052.44782,0.00039,14]
[314423538,1708331451159,-4493.148202,0.00039,14]
[314423539,1708331451170,-151.0,0.00039,14]
[314423540,1708331451181,-4493.148202,0.00039,14]
[314423541,1708331451192,-16010.7490837,0.00039005,12]
[314423542,1708331451203,-1141.99670321,0.00039011,2]
[314423543,1708331451213,-181.2806554,0.00039041,7]
[314423544,1708331451227,-231.27686579,0.00039041,7]
[314423545,1708331451237,-179.80056212,0.00039041,7]
[314423546,1708331451247,-168.34931104,0.00039041,7]
[314423547,1708331451257,-162.65753477,0.00039041,7]
[314423548,1708331451269,-186.35635544,0.00039041,7]
[314423549,1708331451280,-185.42805701,0.00039041,7]
[314423550,1708331451290,-167.33289131,0.00039041,7]
[314423551,1708331451301,-161.65977822,0.00039041,7]
[314423552,1708331451310,-177.60815969,0.00039041,7]
[314423553,1708331451320,-500.0,0.00039045,4]
[314423554,1708331451331,-500.0,0.00039045,4]
[314423555,1708331451341,-500.0,0.00039045,4]
[314423556,1708331451351,-2399.85,0.00039045,4]
[314423557,1708331451360,-500.0,0.00039045,4]
[314423558,1708331451370,-804.69,0.00039045,4]
[314423559,1708331451380,-151.0,0.00039046,7]
[314423560,1708331451390,-215.400571,0.00039046,14]
[314423561,1708331451400,-215.400571,0.00039046,14]
[314423562,1708331451409,-840.524964,0.00039046,14]
[314423563,1708331451419,-840.524964,0.00039046,14]
[314423564,1708331451429,-176.376743,0.00039046,14]
[314423565,1708331451438,-151.0,0.00039046,14]
[314423566,1708331451581,-176.376743,0.00039046,14]
[314423567,1708331451590,-303.213569,0.00039046,14]
[314423568,1708331451600,-303.213569,0.00039046,14]
[314423569,1708331451609,-185.966833,0.00039046,3]
[314423570,1708331451620,-151.0,0.00039046,14]
[314423571,1708331451630,-185.966833,0.00039046,3]
[314423572,1708331451639,-905.530612,0.00039046,14]
[314423573,1708331451650,-558.619538,0.00039046,14]
[314423574,1708331451659,-558.619538,0.00039046,14]
[314423575,1708331451669,-407.651178,0.00039046,14]
[314423576,1708331451678,-407.651178,0.00039046,14]
[314423577,1708331451687,-151.0,0.00039046,14]
[314423578,1708331451697,-407.313882,0.00039046,14]
[314423579,1708331451707,-407.313882,0.00039046,14]
[314423580,1708331451716,-152.705371,0.00039046,14]
[314423581,1708331451726,-152.705371,0.00039046,14]
[314423582,1708331451735,-1747.112516,0.00039046,14]
[314423583,1708331451745,-1747.112516,0.00039046,14]
[314423584,1708331451754,-151.0,0.00039046,14]
[314423585,1708331451763,-336.234787,0.00039046,14]
[314423586,1708331451772,-336.234787,0.00039046,14]
[314423587,1708331451782,-151.0,0.00039046,14]
[314423588,1708331451791,-655.663594,0.00039046,2]
[314423589,1708331451801,-655.663594,0.00039046,2]
[314423590,1708331451812,-202.301092,0.00039046,14]
[314423591,1708331451822,-684.563752,0.00039046,14]
[314423592,1708331451831,-202.301092,0.00039046,14]
[314423593,1708331451842,-684.563752,0.00039046,14]
[314423594,1708331451851,-151.0,0.00039046,14]
[314423595,1708331451861,-151.0,0.00039046,14]
[314423596,1708331451870,-170.863115,0.00039046,14]
[314423597,1708331451880,-170.863115,0.00039046,14]
[314423598,1708331451889,-151.0,0.00039046,14]
[314423599,1708331451899,-311.416744,0.00039046,14]
[314423600,1708331451909,-311.416744,0.00039046,14]
[314423601,1708331451918,-393.990139,0.00039046,14]
[314423602,1708331451927,-393.990139,0.00039046,14]
[314423603,1708331451936,-215.851779,0.00039046,14]
[314423604,1708331451946,-151.0,0.00039046,14]
[314423605,1708331451955,-215.851779,0.00039046,14]
[314423606,1708331451965,-184.507609,0.00039046,14]
[314423607,1708331451974,-320.345835,0.00039046,14]
[314423608,1708331451984,-320.345835,0.00039046,14]
[314423609,1708331451993,-289.628742,0.00039046,14]
[314423610,1708331452003,-151.0,0.00039046,14]
[314423611,1708331452012,-289.628742,0.00039046,14]
[314423612,1708331452021,-256.749914,0.00039046,14]
[314423613,1708331452031,-220.534074,0.00039046,14]
[314423614,1708331452040,-163.569567,0.00039046,14]
[314423615,1708331452049,-256.749914,0.00039046,14]
[314423616,1708331452059,-220.534074,0.00039046,14]
[314423617,1708331452069,-163.569567,0.00039046,14]
[314423618,1708331452078,-424.796395,0.00039046,14]
[314423619,1708331452087,-424.796395,0.00039046,14]
[314423620,1708331452097,-151.0,0.00039046,14]
[314423621,1708331452106,-151.0,0.00039046,14]
[314423622,1708331452115,-6854.281877,0.00039046,14]
[314423623,1708331452124,-6854.281877,0.00039046,14]
[314423624,1708331452133,-8550.0,0.00039046,14]
[314423625,1708331452142,-8550.0,0.00039046,14]
[314423626,1708331452151,-1402.654032,0.00039046,14]
[314423627,1708331452161,-1402.654032,0.00039046,14]
[314423628,1708331452170,-151.0,0.00039046,14]
[314423629,1708331452179,-262.481154,0.00039046,14]
[314423630,1708331452188,-861.933875,0.00039046,14]
[314423631,1708331452198,-262.481154,0.00039046,14]
[314423632,1708331452206,-861.933875,0.00039046,14]
[314423633,1708331452216,-300.720131,0.00039046,14]
[314423634,1708331452226,-300.720131,0.00039046,14]
[314423635,1708331452235,-151.0,0.00039046,14]
[314423636,1708331452244,-151.0,0.00039046,14]
[314423637,1708331452253,-151.0,0.00039046,14]
[314423638,1708331452262,-761.988408,0.00039046,14]
[314423639,1708331452271,-761.988408,0.00039046,14]
[314423640,1708331452280,-168.39365,0.00039046,14]
[314423641,1708331452290,-168.39365,0.00039046,14]
[314423642,1708331452299,-345.987493,0.00039046,14]
[314423643,1708331452308,-294.905721,0.00039046,14]
[314423644,1708331452318,-345.987493,0.00039046,14]
[314423645,1708331452327,-294.905721,0.00039046,14]
[314423646,1708331452337,-164.035459,0.00039046,14]
[314423647,1708331452346,-164.035459,0.00039046,14]
[314423648,1708331452356,-4019.845621,0.00039046,14]
[314423649,1708331452366,-201.498821,0.00039046,14]
[314423650,1708331452375,-4019.845621,0.00039046,14]
[314423651,1708331452385,-201.498821,0.00039046,14]
[314423652,1708331452395,-332.222538,0.00039046,14]
[314423653,1708331452404,-332.222538,0.00039046,14]
[314423654,1708331452413,-221.790654,0.00039046,14]
[314423655,1708331452423,-1181.116676,0.00039046,14]
[314423656,1708331452432,-221.790654,0.00039046,14]
[314423657,1708331452442,-1181.116676,0.00039046,14]
[314423658,1708331452451,-3511.84867,0.00039046,14]
[314423659,1708331452461,-3511.84867,0.00039046,14]
[314423660,1708331452471,-344.98824,0.00039046,14]
[314423661,1708331452480,-234.619198,0.00039046,14]
[314423662,1708331452489,-344.98824,0.00039046,14]
[314423663,1708331452499,-234.619198,0.00039046,14]
[314423664,1708331452508,-1106.186879,0.00039046,14]
[314423665,1708331452518,-151.0,0.00039046,14]
[314423666,1708331452527,-1106.186879,0.00039046,14]
[314423667,1708331452536,-151.0,0.00039046,14]
[314423668,1708331452546,-151.0,0.00039046,14]
[314423669,1708331452555,-174.04,0.00039048,2]
[314423670,1708331452565,-490.10473848,0.00039058,2]
[314423671,1708331452574,-554.85022029,0.00039082,2]
[314423672,1708331452583,-277.855,0.00039093,2]
[314423673,1708331452592,-1009.937,0.00039093,2]
[314423674,1708331452602,-432.137,0.00039093,2]
[314423675,1708331452612,-864.269,0.00039093,2]
[314423676,1708331452622,-344.339,0.00039093,2]
[314423677,1708331452632,-2887.0,0.00039093,2]
[314423678,1708331452641,-323.047,0.00039093,2]
[314423679,1708331452650,-150.92,0.00039093,2]
[314423680,1708331452660,-1138.0,0.00039093,2]
[314423681,1708331452669,-456.69,0.00039093,2]
[314423682,1708331452679,-308.434,0.00039093,2]
[314423683,1708331452690,-150.0,0.00039093,2]
[314423684,1708331452700,-2819.339,0.00039093,2]
[314423685,1708331452709,-5665.041,0.00039093,2]
[314423686,1708331452721,-7467.093,0.00039093,2]
[314423687,1708331452731,-533.572,0.00039093,2]
[314423688,1708331452740,-19865.0,0.00039093,2]
[314423689,1708331452750,-4102.0,0.00039093,2]
[314423690,1708331452759,-319.9,0.00039093,2]
[314423691,1708331452768,-1873.149,0.00039093,2]
[314423692,1708331452777,-2707.043,0.00039093,2]
[314423693,1708331452787,-440.645,0.00039093,2]
[314423694,1708331452796,-161.789,0.00039093,2]
[314423695,1708331452806,-300.0,0.00039096,2]
[314423696,1708331452816,-500.0,0.00039098,4]
[314423697,1708331452825,-150.0,0.000391,14]
[314423698,1708331452834,-151.0,0.000391,10]
[314423699,1708331452844,-751.7445652,0.000391,2]
[314423700,1708331452854,-253.07,0.00039102,2]
[314423701,1708331452863,-438.52475315,0.00039121,4]
[314423702,1708331452872,-500.0,0.00039121,4]
[314423703,1708331452882,-500.0,0.00039121,2]
[314423704,1708331452891,-1110.99,0.00039121,4]
[314423705,1708331452901,-500.0,0.00039121,4]
[314423706,1708331452910,-500.0,0.00039121,4]
[314423707,1708331452920,-2895.09,0.00039121,4]
[314423708,1708331452929,-500.0,0.00039121,4]
[314423709,1708331452938,-500.0,0.00039121,4]
[314423710,1708331452948,-500.0,0.00039121,4]
[314423711,1708331452957,-500.0,0.00039121,4]
[314423712,1708331452967,-1141.94,0.00039121,4]
[314423713,1708331452976,-1142.03,0.00039121,4]
[314423714,1708331452985,-151.0,0.00039122,14]
[314423715,1708331452995,-218.725623,0.00039122,14]
[314423716,1708331453005,-218.725623,0.00039122,14]
[314423717,1708331453015,-164.555975,0.00039122,14]
[314423718,1708331453025,-164.555975,0.00039122,14]
[314423719,1708331453035,-151.0,0.00039122,14]
[314423720,1708331453044,-151.0,0.00039122,14]
[314423721,1708331453054,-184.789088,0.00039122,7]
[314423722,1708331453063,-184.789088,0.00039122,7]
[314423723,1708331453072,-245.831503,0.00039122,14]
[314423724,1708331453082,-245.831503,0.00039122,14]
[314423725,1708331453092,-151.0,0.00039122,14]
[314423726,1708331453101,-151.0,0.00039122,14]
[314423727,1708331453111,-1070.00221536,0.00039124,3]
[314423728,1708331453121,-155.1288673,0.00039138,4]
[314423729,1708331453131,-500.0,0.0003915,4]
[314423730,1708331453141,-4378.4398223,0.00039151,2]
[314423731,1708331453151,-153.98,0.00039159,2]
[314423732,1708331453161,-500.0,0.00039176,4]
[314423733,1708331453171,-500.0,0.00039176,2]
[314423734,1708331453180,-2895.09,0.00039176,4]
[314423735,1708331453189,-340.80840875,0.00039177,4]
[314423736,1708331453198,-391.62104028,0.00039177,4]
[314423737,1708331453208,-500.0,0.00039177,2]
[314423738,1708331453219,-500.0,0.00039177,2]
[314423739,1708331453228,-500.0,0.00039177,2]
[314423740,1708331453237,-500.0,0.00039177,2]
[314423741,1708331453246,-500.0,0.00039177,2]
[314423742,1708331453255,-362.37095566,0.00039177,2]
[314423743,1708331453264,-1110.99,0.00039177,4]
[314423744,1708331453273,-1110.99,0.00039177,4]
[314423745,1708331453283,-1110.99,0.00039177,4]
[314423746,1708331453292,-1110.99,0.00039177,4]
[314423747,1708331453302,-1110.99,0.00039177,4]
[314423748,1708331453311,-1110.99,0.00039177,4]
[314423749,1708331453320,-1110.99,0.00039177,4]
[314423750,1708331453329,-1110.99,0.00039177,4]
[314423751,1708331453338,-359.47994988,0.00039177,4]
[314423752,1708331453347,-500.0,0.00039177,4]
[314423753,1708331453356,-500.0,0.00039177,4]
[314423754,1708331453365,-500.0,0.00039177,4]
[314423755,1708331453374,-500.0,0.00039177,4]
[314423756,1708331453383,-500.0,0.00039177,4]
[314423757,1708331453392,-500.0,0.00039177,4]
[314423758,1708331453401,-500.0,0.00039177,4]
[314423759,1708331453410,-500.0,0.00039177,4]
[314423760,1708331453419,-2895.09,0.00039177,4]
[314423761,1708331453428,-2895.09,0.00039177,4]
[314423762,1708331453437,-2895.09,0.00039177,4]
[314423763,1708331453447,-2895.09,0.00039177,4]
[314423764,1708331453457,-2895.09,0.00039177,4]
[314423765,1708331453467,-2895.09,0.00039177,4]
[314423766,1708331453476,-2895.10477903,0.00039177,4]
[314423767,1708331453485,-500.0,0.00039177,4]
[314423768,1708331453495,-500.0,0.00039177,4]
[314423769,1708331453504,-500.0,0.00039177,4]
[314423770,1708331453513,-500.0,0.00039177,4]
[314423771,1708331453522,-500.0,0.00039177,4]
[314423772,1708331453531,-500.0,0.00039177,4]
[314423773,1708331453540,-500.0,0.00039177,4]
[314423774,1708331453549,-577.17,0.00039177,4]
[314423775,1708331453558,-500.0,0.00039177,4]
[314423776,1708331453566,-500.0,0.00039177,4]
[314423777,1708331453576,-530.12842367,0.00039177,4]
[314423778,1708331453585,-500.0,0.00039177,4]
[314423779,1708331453594,-500.0,0.00039177,4]
[314423780,1708331453604,-199.8450929,0.00039177,4]
[314423781,1708331453615,-500.0,0.00039177,4]
[314423782,1708331453625,-500.0,0.00039177,4]
[314423783,1708331453635,-500.0,0.00039177,4]
[314423784,1708331453645,-443.64025749,0.00039177,4]
[314423785,1708331453654,-500.0,0.00039177,4]
[314423786,1708331453663,-500.0,0.00039177,4]
[314423787,1708331453672,-500.0,0.00039177,4]
[314423788,1708331453682,-500.0,0.00039177,4]
[314423789,1708331453691,-500.0,0.00039177,4]
[314423790,1708331453701,-500.0,0.00039177,4]
[314423791,1708331453710,-500.0,0.00039177,4]
[314423792,1708331453720,-500.0,0.00039177,4]
[314423793,1708331453729,-500.0,0.00039177,4]
[314423794,1708331453738,-500.0,0.00039177,4]
[314423795,1708331453748,-500.0,0.00039177,4]
[314423796,1708331453757,-500.0,0.00039177,4]
[314423797,1708331453766,-500.0,0.00039177,4]
[314423798,1708331453774,-190.64454517,0.00039177,4]
[314423799,1708331453784,-500.0,0.00039177,4]
[314423800,1708331453793,-341.05,0.00039177,4]
[314423801,1708331453802,-500.0,0.00039177,4]
[314423802,1708331453812,-1141.94,0.00039177,4]
[314423803,1708331453822,-500.0,0.00039177,4]
[314423804,1708331453831,-1141.94,0.00039177,4]
[314423805,1708331453841,-500.0,0.00039177,4]
[314423806,1708331453850,-500.0,0.00039177,4]
[314423807,1708331453860,-1141.94,0.00039177,4]
[314423808,1708331453870,-500.0,0.00039177,4]
[314423809,1708331453879,-500.0,0.00039177,4]
[314423810,1708331453889,-1141.94,0.00039177,4]
[314423811,1708331453898,-500.0,0.00039177,4]
[314423812,1708331453908,-1141.94,0.00039177,4]
[314423813,1708331453917,-500.0,0.00039177,4]
[314423814,1708331453926,-1141.94,0.00039177,4]
[314423815,1708331453936,-452.81833817,0.00039177,4]
[314423816,1708331453946,-1141.94,0.00039177,4]
[314423817,1708331453956,-1141.94,0.00039177,4]
[314423818,1708331453966,-1141.94,0.00039177,4]
[314423819,1708331453977,-1141.94,0.00039177,4]
[314423820,1708331453987,-1141.94,0.00039177,4]
[314423821,1708331453997,-1141.98946996,0.00039177,4]
[314423822,1708331454007,-2399.85,0.00039177,4]
[314423823,1708331454017,-2399.85,0.00039177,4]
[314423824,1708331454028,-2399.85,0.00039177,4]
[314423825,1708331454038,-2399.85,0.00039177,4]
[314423826,1708331454049,-2399.85,0.00039177,4]
[314423827,1708331454059,-2399.85,0.00039177,4]
[314423828,1708331454069,-2399.85,0.00039177,4]
[314423829,1708331454080,-2399.85,0.00039177,4]
[314423830,1708331454090,-2399.85,0.00039177,4]
[314423831,1708331454099,-2400.02813618,0.00039177,4]
[314423832,1708331454109,-500.0,0.00039177,4]
[314423833,1708331454118,-500.0,0.00039177,4]
[314423834,1708331454127,-500.0,0.00039177,4]
[314423835,1708331454137,-500.0,0.00039177,4]
[314423836,1708331454146,-315.72282399,0.00039177,4]
[314423837,1708331454155,-804.69,0.00039177,4]
[314423838,1708331454165,-804.69,0.00039177,4]
[314423839,1708331454174,-804.69,0.00039177,4]
[314423840,1708331454183,-804.69,0.00039177,4]
[314423841,1708331454192,-804.69,0.00039177,4]
[314423842,1708331454201,-804.69,0.00039177,4]
[314423843,1708331454210,-804.69,0.00039177,4]
[314423844,1708331454221,-804.69,0.00039177,4]
[314423845,1708331454230,-1142.03,0.00039177,4]
[314423846,1708331454239,-1142.03,0.00039177,4]
[314423847,1708331454249,-804.69,0.00039177,4]
[314423848,1708331454258,-1142.03,0.00039177,4]
[314423849,1708331454268,-804.88724851,0.00039177,4]
[314423850,1708331454278,-1142.03,0.00039177,4]
[314423851,1708331454287,-1142.03,0.00039177,4]
[314423852,1708331454297,-1142.03,0.00039177,4]
[314423853,1708331454306,-1142.03,0.00039177,4]
[314423854,1708331454316,-1142.03,0.00039177,4]
[314423855,1708331454326,-1142.03,0.00039177,4]
[314423856,1708331454335,-1142.03,0.00039177,4]
[314423857,1708331454344,-1142.03,0.00039177,4]
[314423858,1708331454353,-1142.0378,0.00039177,4]
[314423859,1708331454485,-415.80331766,0.00039177,2]
[314423860,1708331454495,-299.96648964,0.00039177,2]
[314423861,1708331454505,-415.80331766,0.00039177,2]
[314423862,1708331454514,-299.96648964,0.00039177,2]
[314423863,1708331454523,-322.385201,0.00039177,14]
[314423864,1708331454533,-322.385201,0.00039177,14]
[314423865,1708331454543,-1052.44782,0.00039177,14]
[314423866,1708331454553,-1052.44782,0.00039177,14]
[314423867,1708331454563,-4493.148202,0.00039177,14]
[314423868,1708331454572,-151.0,0.00039177,14]
[314423869,1708331454582,-4493.148202,0.00039177,14]
[314423870,1708331454591,-16010.7490837,0.00039177,12]
[314423871,1708331454601,-151.0,0.00039178,14]
[314423872,1708331454613,-151.0,0.00039178,14]
[314423873,1708331454622,-218.725623,0.00039178,14]
[314423874,1708331454631,-218.725623,0.00039178,14]
[314423875,1708331454640,-218.725623,0.00039178,14]
[314423876,1708331454650,-218.725623,0.00039178,14]
[314423877,1708331454659,-164.555975,0.00039178,14]
[314423878,1708331454669,-164.555975,0.00039178,14]
[314423879,1708331454678,-164.555975,0.00039178,14]
[314423880,1708331454688,-164.555975,0.00039178,14]
[314423881,1708331454698,-151.0,0.00039178,14]
[314423882,1708331454707,-151.0,0.00039178,14]
[314423883,1708331454718,-151.0,0.00039178,14]
[314423884,1708331454727,-282.601647,0.00039178,14]
[314423885,1708331454736,-184.789088,0.00039178,7]
[314423886,1708331454745,-184.789088,0.00039178,7]
[314423887,1708331454754,-184.789088,0.00039178,7]
[314423888,1708331454763,-184.789088,0.00039178,7]
[314423889,1708331454772,-245.831503,0.00039178,14]
[314423890,1708331454782,-245.831503,0.00039178,14]
[314423891,1708331454790,-245.831503,0.00039178,14]
[314423892,1708331454799,-245.831503,0.00039178,14]
[314423893,1708331454809,-151.0,0.00039178,14]
[314423894,1708331454818,-151.0,0.00039178,14]
[314423895,1708331454827,-151.0,0.00039178,14]
[314423896,1708331454837,-151.0,0.00039178,14]
[314423897,1708331454846,-151.0,0.00039178,14]
[314423898,1708331454856,-151.0,0.00039178,14]
[314423899,1708331454866,-152.401369,0.00039178,14]
[314423900,1708331454876,-151.0,0.00039178,7]
[314423901,1708331454886,-151.0,0.00039178,7]
[314423902,1708331454895,-215.400571,0.00039178,14]
[314423903,1708331454904,-215.400571,0.00039178,14]
[314423904,1708331454914,-215.400571,0.00039178,14]
[314423905,1708331454922,-215.400571,0.00039178,14]
[314423906,1708331454932,-840.524964,0.00039178,14]
[314423907,1708331454941,-840.524964,0.00039178,14]
[314423908,1708331454951,-840.524964,0.00039178,14]
[314423909,1708331454960,-840.524964,0.00039178,14]
[314423910,1708331454971,-176.376743,0.00039178,14]
[314423911,1708331454981,-176.376743,0.00039178,14]
[314423912,1708331454990,-151.0,0.00039178,14]
[314423913,1708331455000,-151.0,0.00039178,14]
[314423914,1708331455010,-176.376743,0.00039178,14]
[314423915,1708331455019,-176.376743,0.00039178,14]
[314423916,1708331455029,-303.213569,0.00039178,14]
[314423917,1708331455039,-303.213569,0.00039178,14]
[314423918,1708331455048,-303.213569,0.00039178,14]
[314423919,1708331455057,-303.213569,0.00039178,14]
[314423920,1708331455067,-185.966833,0.00039178,3]
[314423921,1708331455076,-185.966833,0.00039178,3]
[314423922,1708331455086,-227.497651,0.00039178,14]
[314423923,1708331455095,-185.966833,0.00039178,3]
[314423924,1708331455105,-185.966833,0.00039178,3]
[314423925,1708331455114,-905.530612,0.00039178,14]
[314423926,1708331455123,-905.530612,0.00039178,14]
[314423927,1708331455133,-558.619538,0.00039178,14]
[314423928,1708331455143,-558.619538,0.00039178,14]
[314423929,1708331455152,-558.619538,0.00039178,14]
[314423930,1708331455161,-558.619538,0.00039178,14]
[314423931,1708331455170,-407.651178,0.00039178,14]
[314423932,1708331455179,-407.651178,0.00039178,14]
[314423933,1708331455189,-407.651178,0.00039178,14]
[314423934,1708331455198,-407.651178,0.00039178,14]
[314423935,1708331455207,-151.0,0.00039178,14]
[314423936,1708331455216,-151.0,0.00039178,14]
[314423937,1708331455225,-407.313882,0.00039178,14]
[314423938,1708331455235,-407.313882,0.00039178,14]
[314423939,1708331455244,-407.313882,0.00039178,14]
[314423940,1708331455253,-407.313882,0.00039178,14]
[314423941,1708331455262,-152.705371,0.00039178,14]
[314423942,1708331455271,-152.705371,0.00039178,14]
[314423943,1708331455279,-152.705371,0.00039178,14]
[314423944,1708331455289,-152.705371,0.00039178,14]
[314423945,1708331455298,-1747.112516,0.00039178,14]
[314423946,1708331455307,-1747.112516,0.00039178,14]
[314423947,1708331455316,-1747.112516,0.00039178,14]
[314423948,1708331455325,-1747.112516,0.00039178,14]
[314423949,1708331455335,-299.3517,0.00039178,14]
[314423950,1708331455344,-336.234787,0.00039178,14]
[314423951,1708331455353,-336.234787,0.00039178,14]
[314423952,1708331455362,-336.234787,0.00039178,14]
[314423953,1708331455372,-336.234787,0.00039178,14]
[314423954,1708331455381,-151.0,0.00039178,14]
[314423955,1708331455390,-151.0,0.00039178,14]
[314423956,1708331455399,-655.663594,0.00039178,2]
[314423957,1708331455408,-655.663594,0.00039178,2]
[314423958,1708331455417,-655.663594,0.00039178,2]
[314423959,1708331455426,-655.663594,0.00039178,2]
[314423960,1708331455435,-202.301092,0.00039178,14]
[314423961,1708331455444,-202.301092,0.00039178,14]
[314423962,1708331455454,-684.563752,0.00039178,14]
[314423963,1708331455463,-684.563752,0.00039178,14]
[314423964,1708331455472,-202.301092,0.00039178,14]
[314423965,1708331455482,-202.301092,0.00039178,14]
[314423966,1708331455491,-684.563752,0.00039178,14]
[314423967,1708331455501,-684.563752,0.00039178,14]
[314423968,1708331455511,-151.0,0.00039178,14]
[314423969,1708331455521,-151.0,0.00039178,14]
[314423970,1708331455530,-151.0,0.00039178,14]
[314423971,1708331455540,-151.0,0.00039178,14]
[314423972,1708331455549,-170.863115,0.00039178,14]
[314423973,1708331455558,-170.863115,0.00039178,14]
[314423974,1708331455567,-170.863115,0.00039178,14]
[314423975,1708331455577,-170.863115,0.00039178,14]
[314423976,1708331455586,-151.0,0.00039178,14]
[314423977,1708331455595,-264.101786,0.00039178,14]
[314423978,1708331455605,-311.416744,0.00039178,14]
[314423979,1708331455616,-311.416744,0.00039178,14]
[314423980,1708331455626,-311.416744,0.00039178,14]
[314423981,1708331455635,-311.416744,0.00039178,14]
[314423982,1708331455645,-393.990139,0.00039178,14]
[314423983,1708331455655,-393.990139,0.00039178,14]
[314423984,1708331455663,-393.990139,0.00039178,14]
[314423985,1708331455673,-393.990139,0.00039178,14]
[314423986,1708331455682,-215.851779,0.00039178,14]
[314423987,1708331455692,-215.851779,0.00039178,14]
[314423988,1708331455701,-151.0,0.00039178,14]
[314423989,1708331455710,-151.0,0.00039178,14]